Workbook

Sheet AER Final Decision
A1: AER Final Decision for Ergon Energy - Public Lighting Annual Prices
C3: Rate 1 & 2 CONV | D3: Rate 1 & 2 LED | E3: Rate 2A LED
B4: X factor (Year 2 to 5) | C4: =Inputs!C52 -> -0.07 | D4: =Inputs!D52 -> -0.07 | E4: =Inputs!E52 -> -0.07
C7: Annual Prices 2025-26
B8: Year | C8: AER Final Decision | D8: Revised Proposal | E8: Difference ($) | F8: Difference (%)
B9: Rate 1 - Ergon Energy Owned & Operated
B10: Major Conventional | C10: =Output!C6 -> 446.5534795 | D10: 431.747083 | E10: =C10-D10 -> 14.80639655 | F10: =E10/D10 -> 0.03429414381
B11: Minor Conventional | C11: =Output!C7 -> 266.0493662 | D11: 257.2279537 | E11: =C11-D11 -> 8.821412436 | F11: =E11/D11 -> 0.03429414381
B12: Major LED | C12: =Output!C8 -> 173.4418519 | D12: 170.4257455 | E12: 3.016106375 | F12: 0.01769748089
B13: Minor LED | C13: =Output!C9 -> 110.0703062 | D13: 108.1562136 | E13: 1.914092524 | F13: 0.01769748089
B15: Rate 2 - Gifted & Ergon Energy Operated
B16: Major Conventional | C16: =Output!C12 -> 180.3347168 | D16: 174.3553494 | E16: =C16-D16 -> 5.979367426 | F16: 0.03429414381
B17: Minor Conventional | C17: =Output!C13 -> 118.1258541 | D17: 114.2091491 | E17: 3.916704982 | F17: 0.03429414381
B18: Major LED | C18: =Output!C14 -> 126.6729592 | D18: 124.4701511 | E18: 2.20280812 | F18: 0.01769748089
B19: Minor LED | C19: =Output!C15 -> 84.0839515 | D19: 82.62175458 | E19: 1.462196923 | F19: 0.01769748089
B21: Rate 2A
B22: Major LED | C22: =Output!C18 -> 183.4328802 | D22: 179.6897062 | E22: =C22-D22 -> 3.74317404 | F22: 0.0208313215
B23: Minor LED | C23: =Output!C19 -> 116.4108493 | D23: 114.0353424 | E23: 2.375506881 | F23: 0.0208313215

Sheet AER Final decision changes
A1: Cells | B1: Description of changes
A2: Inputs' C49 and C50 | B2: substituted with ABS inflation rate and discounted rate for smoothing
A3: Inputs' rows 16, 17, 24, 27, 29 | B3: updated forecast revenue - from Public Lighting intermediary model

Sheet Cover page
A2: ACS Public Lighting pricing model for Ergon Energy
A3: Regulatory control period 1 July 2025 to 30 June 2030

Sheet Inputs
B2: Inputs and Assumptions
B4: Rates
B5: Ergon Energy Owned & Operated | C5: Rate 1
B6: Gifted & Ergon Energy Operated | C6: Rate 2
B7: Rate 2 Energex funded, owned & operated | C7: Rate 2A
B12: Forecast revenue
B14: Year | C14: 2025-26 | D14: 2026-27 | E14: 2027-28 | F14: 2028-29 | G14: 2029-30
B15: Opex revenue required (including tax)
B16: Conventional | C16: 2084859.641 | D16: 1492877.077 | E16: 950443.3011 | F16: 454654.0957 | G16: 0
B17: LED total | C17: 8960739.526 | D17: 9490999.784 | E17: 9959053.135 | F17: 10384171.89 | G17: 10785718.2
B18: LED Rate 1 and Rate 2 | C18: =Calculations!C50*(Calculations!C10+Calculations!C17)+Calculations!C51*(Calculations!C11+Calculations!C18) -> 8331007.428 | D18: =Calculations!D50*(Calculations!D10+Calculations!D17)+Calculations!D51*(Calculations!D11+Calculations!D18) -> 8540919.551 | E18: =Calculations!E50*(Calculations!E10+Calculations!E17)+Calculations!E51*(Calculations!E11+Calculations!E18) -> 8743442.638 | F18: =Calculations!F50*(Calculations!F10+Calculations!F17)+Calculations!F51*(Calculations!F11+Calculations!F18) -> 8940774.337 | G18: =Calculations!G50*(Calculations!G10+Calculations!G17)+Calculations!G51*(Calculations!G11+Calculations!G18) -> 9141349.433
B19: LED Rate 2A | C19: =(Calculations!C50*Calculations!C23)+(Calculations!C51*Calculations!C24) -> 629732.0977 | D19: =(Calculations!D50*Calculations!D23)+(Calculations!D51*Calculations!D24) -> 950080.2331 | E19: =(Calculations!E50*Calculations!E23)+(Calculations!E51*Calculations!E24) -> 1215610.497 | F19: =(Calculations!F50*Calculations!F23)+(Calculations!F51*Calculations!F24) -> 1443397.558 | G19: =(Calculations!G50*Calculations!G23)+(Calculations!G51*Calculations!G24) -> 1644368.764
B21: Capex revenue required Conventional
B22: Return on capital
B23: Return of capital
B24: Total Capex Charge Conventional | C24: 10023223.45 | D24: 8193785.421 | E24: 8655093.795 | F24: 8633352.912 | G24: 7670524.739
B26: Capex revenue required LED
B27: Return on and of capital - Rate 1 | C27: 6167452.787 | D27: 8061361.877 | E27: 8889779.225 | F27: 10286021.46 | G27: 12682901.07
B28: Return on and of capital - Rate 2 | C28: 0 | D28: 0 | E28: 0 | F28: 0 | G28: 0 | H28: No capex Rate 2 allocation
B29: Return on and of capital - Rate 2A | C29: 0 | D29: 1584624.752 | E29: 2050358.869 | F29: 2546011.48 | G29: 3070259.856
B30: Total Capex Charge LED | C30: =SUM(C27:C29) -> 6167452.787 | D30: =SUM(D27:D29) -> 9645986.629 | E30: =SUM(E27:E29) -> 10940138.09 | F30: 12832032.94 | G30: 15753160.93
B32: Annual revenue requirement (opex plus capex)
B33: Conventional | C33: =C16+C24 -> 12108083.09 | D33: =D16+D24 -> 9686662.498 | E33: 9605537.096 | F33: 9088007.008 | G33: 7670524.739
B34: LED | C34: =C17+C30 -> 15128192.31 | D34: =D17+D30 -> 19136986.41 | E34: 20899191.23 | F34: 23216204.83 | G34: 26538879.13
B35: Total | C35: =C33+C34 -> 27236275.41 | D35: =D33+D34 -> 28823648.91 | E35: 30504728.33 | F35: 32304211.84 | G35: 34209403.87
B38: Pricing allocators
B40: Proportion of asset base related to refurbishment | C40: 0.1
B42: Relativity Major to Minor lights
B43: Opex + tax | C43: 1.5
B44: Asset charge | C44: 1.8
B47: Price Smoothing Inputs
B49: Expected CPI | C49: 0.0242468773
B50: Discount rate for smoothing | C50: 0.06090445737 | D50: 0.0611479894 | E50: 0.06164231081 | F50: 0.06249559205 | G50: 0.06337217396
C51: Rate 1 & 2 CONV | D51: Rate 1 & 2 LED | E51: Rate 2A LED | F51: Adjustment to manage customer impact in P0
B52: X factor (years 2 to 5) | C52: -0.07 | D52: =C52 -> -0.07 | E52: =C52 -> -0.07
B54: Days in year | C54: 365.25
B55: Days in each year | C55: 365 | D55: 365 | E55: 365 | F55: 366 | G55: 365
B57: 2024-25 Prices
B58: Rate 1 - Ergon Energy Owned & Operated
B59: Major Conventional | C59: 1.10718
B60: Minor Conventional | C60: 0.65964
B61: Major LED | C61: 0.37096
B62: Minor LED | C62: 0.23542
B64: Rate 2 - Gifted & Ergon Energy Operated
B65: Major Conventional | C65: 0.44712
B66: Minor Conventional | C66: 0.29288
B67: Major LED | C67: 0.27093
B68: Minor LED | C68: 0.17984

Sheet Calculations
B1: Ergon Energy - Public Lighting Pricing Model
B3: Quantites
B5: Year | C5: 2025-26 | D5: 2026-27 | E5: 2027-28 | F5: 2028-29 | G5: 2029-30
B6: Average population of lights
B7: Rate 1 - Ergon Energy Owned & Operated
B8: Major Conventional | C8: ='Import Qty'!E18 -> 19310.5 | D8: ='Import Qty'!F18 -> 15019.5 | E8: ='Import Qty'!G18 -> 10728 | F8: ='Import Qty'!H18 -> 6436.5 | G8: ='Import Qty'!I18 -> 2145.5
B9: Minor Conventional | C9: ='Import Qty'!E19 -> 12512.5 | D9: ='Import Qty'!F19 -> 9732 | E9: ='Import Qty'!G19 -> 6951.5 | F9: ='Import Qty'!H19 -> 4171 | G9: ='Import Qty'!I19 -> 1390.5
B10: Major LED | C10: ='Import Qty'!E20 -> 10011.1 | D10: ='Import Qty'!F20 -> 14140.5 | E10: ='Import Qty'!G20 -> 18525 | F10: ='Import Qty'!H20 -> 22911.5 | G10: ='Import Qty'!I20 -> 27299.5
B11: Minor LED | C11: ='Import Qty'!E21 -> 61964.2 | D11: ='Import Qty'!F21 -> 64273 | E11: ='Import Qty'!G21 -> 67343.5 | F11: ='Import Qty'!H21 -> 70418 | G11: ='Import Qty'!I21 -> 73496.5
B12: Total | C12: =SUM(C8:C11) -> 103798.3 | D12: =SUM(D8:D11) -> 103165 | E12: 103548 | F12: 103937 | G12: 104332
B14: Rate 2 - Gifted & Ergon Energy Operated
B15: Major Conventional | C15: ='Import Qty'!E36 -> 9219.5 | D15: ='Import Qty'!F36 -> 7171 | E15: ='Import Qty'!G36 -> 5122.5 | F15: ='Import Qty'!H36 -> 3073.5 | G15: ='Import Qty'!I36 -> 1024.5
B16: Minor Conventional | C16: ='Import Qty'!E37 -> 11816 | D16: ='Import Qty'!F37 -> 9190.5 | E16: ='Import Qty'!G37 -> 6565 | F16: ='Import Qty'!H37 -> 3939 | G16: ='Import Qty'!I37 -> 1313
B17: Major LED | C17: ='Import Qty'!E38 -> 5672 | D17: ='Import Qty'!F38 -> 7727.5 | E17: ='Import Qty'!G38 -> 9783 | F17: ='Import Qty'!H38 -> 11839 | G17: ='Import Qty'!I38 -> 13895
B18: Minor LED | C18: ='Import Qty'!E39 -> 27613 | D18: ='Import Qty'!F39 -> 31005.5 | E18: ='Import Qty'!G39 -> 33657 | F18: ='Import Qty'!H39 -> 36309.5 | G18: ='Import Qty'!I39 -> 38963
B19: Total | C19: =SUM(C15:C18) -> 54320.5 | D19: =SUM(D15:D18) -> 55094.5 | E19: 55127.5 | F19: 55161 | G19: 55195.5
B22: Rate 2A - Rate 2 LED Ergon Energy Funded, Owned & Operated
B23: Major LED | C23: ='Import Qty'!E50 -> 3073.5 | D23: ='Import Qty'!F50 -> 5122 | E23: ='Import Qty'!G50 -> 7170.5 | F23: ='Import Qty'!H50 -> 9219.5 | G23: ='Import Qty'!I50 -> 11268.5
B24: Minor LED | C24: ='Import Qty'!E51 -> 3939 | D24: ='Import Qty'!F51 -> 6564.5 | E24: ='Import Qty'!G51 -> 9190 | F24: ='Import Qty'!H51 -> 11816 | G24: ='Import Qty'!I51 -> 14442
B25: Total | C25: =SUM(C23:C24) -> 7012.5 | D25: =SUM(D23:D24) -> 11686.5 | E25: 16360.5 | F25: 21035.5 | G25: 25710.5
B26: Grand total
B28: Rate 1 and Rate 2 combined total
B29: Major Conventional | C29: =C8+C15 -> 28530 | D29: =D8+D15 -> 22190.5 | E29: 15850.5 | F29: 9510 | G29: 3170
B30: Minor Conventional | C30: =C9+C16 -> 24328.5 | D30: 18922.5 | E30: 13516.5 | F30: 8110 | G30: 2703.5
B31: Major LED | C31: =C10+C17 -> 15683.1 | D31: 21868 | E31: 28308 | F31: 34750.5 | G31: 41194.5
B32: Minor LED | C32: =C11+C18 -> 89577.2 | D32: 95278.5 | E32: 101000.5 | F32: 106727.5 | G32: 112459.5
B33: Total | C33: =SUM(C29:C32) -> 158118.8 | D33: =SUM(D29:D32) -> 158259.5 | E33: 158675.5 | F33: 159098 | G33: 159527.5
B35: Rate 1, Rate 2 and Rate 2A combined total
B36: Major Conventional | C36: =C8+C15 -> 28530 | D36: 22190.5 | E36: 15850.5 | F36: 9510 | G36: 3170
B37: Minor Conventional | C37: 24328.5 | D37: 18922.5 | E37: 13516.5 | F37: 8110 | G37: 2703.5
B38: Major LED | C38: =C10+C17+C23 -> 18756.6 | D38: 26990 | E38: 35478.5 | F38: 43970 | G38: 52463
B39: Minor LED | C39: 93516.2 | D39: 101843 | E39: 110190.5 | F39: 118543.5 | G39: 126901.5
B40: Total | C40: =SUM(C36:C39) -> 165131.3 | D40: =SUM(D36:D39) -> 169946 | E40: 175036 | F40: 180133.5 | G40: 185238
B43: Price components
B45: Year | C45: 2025-26 | D45: 2026-27 | E45: 2027-28 | F45: 2028-29 | G45: 2029-30
B46: Opex charge (per unit)
B47: Same operational expenditure is applied to Rate 1, Rate 2, Rate 2A
B48: Major Conventional | C48: =Inputs!C16/(Calculations!C36+Calculations!C37/Inputs!$C$43) -> 46.59008338 | D48: =Inputs!D16/(Calculations!D36+Calculations!D37/Inputs!$C$43) -> 42.89198768 | E48: =Inputs!E16/(Calculations!E36+Calculations!E37/Inputs!$C$43) -> 38.2295236 | F48: =Inputs!F16/(Calculations!F36+Calculations!F37/Inputs!$C$43) -> 30.47960418 | G48: =Inputs!G16/(Calculations!G36+Calculations!G37/Inputs!$C$43) -> 0
B49: Minor Conventional | C49: =C48/Inputs!$C$43 -> 31.06005559 | D49: =D48/Inputs!$C$43 -> 28.59465846 | E49: =E48/Inputs!$C$43 -> 25.48634907 | F49: =F48/Inputs!$C$43 -> 20.31973612 | G49: =G48/Inputs!$C$43 -> 0
B50: Major LED | C50: =Inputs!C17/(Calculations!C38+Calculations!C39/Inputs!$C$43) -> 110.4890074 | D50: =Inputs!D17/(Calculations!D38+Calculations!D39/Inputs!$C$43) -> 100.025994 | E50: =Inputs!E17/(Calculations!E38+Calculations!E39/Inputs!$C$43) -> 91.4187607 | F50: =Inputs!F17/(Calculations!F38+Calculations!F39/Inputs!$C$43) -> 84.42484812 | G50: =Inputs!G17/(Calculations!G38+Calculations!G39/Inputs!$C$43) -> 78.69110924
B51: Minor LED | C51: =C50/Inputs!$C$43 -> 73.65933827 | D51: =D50/Inputs!$C$43 -> 66.68399601 | E51: =E50/Inputs!$C$43 -> 60.94584047 | F51: =F50/Inputs!$C$43 -> 56.28323208 | G51: =G50/Inputs!$C$43 -> 52.46073949
B53: Rate 1 - Capex Charge (per unit)
B54: Applied only to Rate 1 - Ergon Energy Owned & Operated
B55: Major Conventional | C55: =Inputs!C24/(Calculations!C8+Calculations!C9/Inputs!$C$44)*(1-Inputs!$C$40) -> 343.4978019 | D55: =Inputs!D24/(Calculations!D8+Calculations!D9/Inputs!$C$44)*(1-Inputs!$C$40) -> 361.0274507 | E55: =Inputs!E24/(Calculations!E8+Calculations!E9/Inputs!$C$44)*(1-Inputs!$C$40) -> 533.9008963 | F55: =Inputs!F24/(Calculations!F8+Calculations!F9/Inputs!$C$44)*(1-Inputs!$C$40) -> 887.6244212 | G55: =Inputs!G24/(Calculations!G8+Calculations!G9/Inputs!$C$44)*(1-Inputs!$C$40) -> 2365.823257
B56: Minor Conventional | C56: =C55/Inputs!$C$44 -> 190.8321122 | D56: =D55/Inputs!$C$44 -> 200.5708059 | E56: =E55/Inputs!$C$44 -> 296.6116091 | F56: =F55/Inputs!$C$44 -> 493.1246784 | G56: =G55/Inputs!$C$44 -> 1314.346254
B57: Major LED | C57: =Inputs!C27/(Calculations!C10+Calculations!C11/Inputs!$C$44)*(1-Inputs!$C$40) -> 124.915621 | D57: =Inputs!D27/(Calculations!D10+Calculations!D11/Inputs!$C$44)*(1-Inputs!$C$40) -> 145.5477877 | E57: =Inputs!E27/(Calculations!E10+Calculations!E11/Inputs!$C$44)*(1-Inputs!$C$40) -> 143.0296642 | F57: =Inputs!F27/(Calculations!F10+Calculations!F11/Inputs!$C$44)*(1-Inputs!$C$40) -> 149.2347194 | G57: =Inputs!G27/(Calculations!G10+Calculations!G11/Inputs!$C$44)*(1-Inputs!$C$40) -> 167.5394399
B58: Minor LED | C58: =C57/Inputs!$C$44 -> 69.39756723 | D58: =D57/Inputs!$C$44 -> 80.85988204 | E58: =E57/Inputs!$C$44 -> 79.46092456 | F58: =F57/Inputs!$C$44 -> 82.90817743 | G58: =G57/Inputs!$C$44 -> 93.07746663
B60: Rate 2 - Refurbishment Charge (per unit)
B61: Same refurbishment charge is applied Rate 2 LED and CONV
B62: Major Conventional | C62: =Inputs!C24/(Calculations!C15+Calculations!C16/Inputs!$C$44)*Inputs!$C$40 -> 63.50265289 | D62: =Inputs!D24/(Calculations!D15+Calculations!D16/Inputs!$C$44)*Inputs!$C$40 -> 66.74184782 | E62: =Inputs!E24/(Calculations!E15+Calculations!E16/Inputs!$C$44)*Inputs!$C$40 -> 98.69290698 | F62: =Inputs!F24/(Calculations!F15+Calculations!F16/Inputs!$C$44)*Inputs!$C$40 -> 164.0749975 | G62: =Inputs!G24/(Calculations!G15+Calculations!G16/Inputs!$C$44)*Inputs!$C$40 -> 437.3299715
B63: Minor Conventional | C63: =C62/Inputs!$C$44 -> 35.2792516 | D63: =D62/Inputs!$C$44 -> 37.07880434 | E63: =E62/Inputs!$C$44 -> 54.82939277 | F63: =F62/Inputs!$C$44 -> 91.15277641 | G63: =G62/Inputs!$C$44 -> 242.9610953
B64: Major LED | C64: =Inputs!C27/(Calculations!C17+Calculations!C18/Inputs!$C$44)*Inputs!$C$40 -> 29.35127415 | D64: =Inputs!D27/(Calculations!D17+Calculations!D18/Inputs!$C$44)*Inputs!$C$40 -> 32.30647084 | E64: =Inputs!E27/(Calculations!E17+Calculations!E18/Inputs!$C$44)*Inputs!$C$40 -> 31.21265118 | F64: =Inputs!F27/(Calculations!F17+Calculations!F18/Inputs!$C$44)*Inputs!$C$40 -> 32.13282718 | G64: =Inputs!G27/(Calculations!G17+Calculations!G18/Inputs!$C$44)*Inputs!$C$40 -> 35.68515637
B65: Minor LED | C65: =C64/Inputs!$C$44 -> 16.30626342 | D65: =D64/Inputs!$C$44 -> 17.94803936 | E65: =E64/Inputs!$C$44 -> 17.34036177 | F65: =F64/Inputs!$C$44 -> 17.85157066 | G65: =G64/Inputs!$C$44 -> 19.82508687
B67: Rate 2A - Capex Charge (per unit)
B68: Applied only to Rate 2A - Ergon Energy Owned & Operated
B69: Major LED | C69: =Inputs!C29/(C23+C24/Inputs!$C$44) -> 0 | D69: =Inputs!D29/(D23+D24/Inputs!$C$44) -> 180.7087229 | E69: =Inputs!E29/(E23+E24/Inputs!$C$44) -> 167.0209832 | F69: =Inputs!F29/(F23+F24/Inputs!$C$44) -> 161.30388 | G69: =Inputs!G29/(G23+G24/Inputs!$C$44) -> 159.148164
B70: Minor LED | C70: =C69/Inputs!$C$44 -> 0 | D70: =D69/Inputs!$C$44 -> 100.3937349 | E70: =E69/Inputs!$C$44 -> 92.78943511 | F70: =F69/Inputs!$C$44 -> 89.61326665 | G70: =G69/Inputs!$C$44 -> 88.41564669
B74: Unsmoothed Daily Prices
B76: Rate 1 - Ergon Energy Owned & Operated
B77: Major Conventional | C77: =(C48+C55)/Inputs!$C$54 -> 1.068002424 | D77: =(D48+D55)/Inputs!$C$54 -> 1.105871152 | E77: =(E48+E55)/Inputs!$C$54 -> 1.56640772 | F77: =(F48+F55)/Inputs!$C$54 -> 2.513631828 | G77: =(G48+G55)/Inputs!$C$54 -> 6.477271067
B78: Minor Conventional | C78: =(C49+C56)/Inputs!$C$54 -> 0.6075076462 | D78: =(D49+D56)/Inputs!$C$54 -> 0.627420847 | E78: =(E49+E56)/Inputs!$C$54 -> 0.8818561482 | F78: =(F49+F56)/Inputs!$C$54 -> 1.405734195 | G78: =(G49+G56)/Inputs!$C$54 -> 3.598483926
B79: Major LED | C79: =(C50+C57)/Inputs!$C$54 -> 0.6445027472 | D79: =(D50+D57)/Inputs!$C$54 -> 0.6723443715 | E79: =(E50+E57)/Inputs!$C$54 -> 0.6418848047 | F79: =(F50+F57)/Inputs!$C$54 -> 0.6397250308 | G79: =(G50+G57)/Inputs!$C$54 -> 0.6741425029
B80: Minor LED | C80: =(C51+C58)/Inputs!$C$54 -> 0.3916684613 | D80: =(D51+D58)/Inputs!$C$54 -> 0.4039531226 | E80: =(E51+E58)/Inputs!$C$54 -> 0.3844127721 | F80: =(F51+F58)/Inputs!$C$54 -> 0.3810853101 | G80: =(G51+G58)/Inputs!$C$54 -> 0.3984618922
B82: Rate 2 - Gifted & Ergon Energy Operated
B83: Major Conventional | C83: =(C48+C62)/Inputs!$C$54 -> 0.3014174847 | D83: =(D48+D62)/Inputs!$C$54 -> 0.3001610828 | E83: =(E48+E62)/Inputs!$C$54 -> 0.3748731844 | F83: =(F48+F62)/Inputs!$C$54 -> 0.5326614694 | G83: =(G48+G62)/Inputs!$C$54 -> 1.197344207
B84: Minor Conventional | C84: =(C49+C63)/Inputs!$C$54 -> 0.1816271244 | D84: =(D49+D63)/Inputs!$C$54 -> 0.1798041418 | E84: =(E49+E63)/Inputs!$C$54 -> 0.219892517 | F84: =(F49+F63)/Inputs!$C$54 -> 0.3051951062 | G84: =(G49+G63)/Inputs!$C$54 -> 0.6651912259
B85: Major LED | C85: =(C50+C64)/Inputs!$C$54 -> 0.3828618249 | D85: =(D50+D64)/Inputs!$C$54 -> 0.3623065431 | E85: =(E50+E64)/Inputs!$C$54 -> 0.3357465075 | F85: =(F50+F64)/Inputs!$C$54 -> 0.3191175231 | G85: =(G50+G64)/Inputs!$C$54 -> 0.3131451488
B86: Minor LED | C86: =(C51+C65)/Inputs!$C$54 -> 0.2463123934 | D86: =(D51+D65)/Inputs!$C$54 -> 0.2317098846 | E86: =(E51+E65)/Inputs!$C$54 -> 0.2143359404 | F86: =(F51+F65)/Inputs!$C$54 -> 0.202970028 | G86: =(G51+G65)/Inputs!$C$54 -> 0.1979078066
B88: Rate 2A - Ergon Energy funded Rate 2, Owned & Operated
B89: Major LED | C89: =(C50+C69)/Inputs!$C$54 -> 0.3025024159 | D89: =(D50+D69)/Inputs!$C$54 -> 0.7686097656 | E89: =(E50+E69)/Inputs!$C$54 -> 0.7075694563 | F89: =(F50+F69)/Inputs!$C$54 -> 0.6727685916 | G89: =(G50+G69)/Inputs!$C$54 -> 0.6511684416
B90: Minor LED | C90: =(C51+C70)/Inputs!$C$54 -> 0.2016682773 | D90: =(D51+D70)/Inputs!$C$54 -> 0.4574338972 | E90: =(E51+E70)/Inputs!$C$54 -> 0.4209042453 | F90: =(F51+F70)/Inputs!$C$54 -> 0.3994428439 | G90: =(G51+G70)/Inputs!$C$54 -> 0.3856985248
B93: Smoothed Daily Prices
B95: Rate 1 - Ergon Energy Owned & Operated
B96: Major Conventional | C96: =Inputs!C59*(1+Inputs!$C$49)*(1-$C$146) -> 1.223434191 | D96: =C96*(1+Inputs!$C$49)*(1-Inputs!$C$52) -> 1.340815555 | E96: =D96*(1+Inputs!$C$49)*(1-Inputs!$C$52) -> 1.469458975 | F96: =E96*(1+Inputs!$C$49)*(1-Inputs!$C$52) -> 1.61044498 | G96: =F96*(1+Inputs!$C$49)*(1-Inputs!$C$52) -> 1.764957769
B97: Minor Conventional | C97: =Inputs!C60*(1+Inputs!$C$49)*(1-$C$146) -> 0.7289023731 | D97: =C97*(1+Inputs!$C$49)*(1-Inputs!$C$52) -> 0.7988362981 | E97: =D97*(1+Inputs!$C$49)*(1-Inputs!$C$52) -> 0.8754799746 | F97: =E97*(1+Inputs!$C$49)*(1-Inputs!$C$52) -> 0.9594771643 | G97: =F97*(1+Inputs!$C$49)*(1-Inputs!$C$52) -> 1.051533394
B98: Major LED | C98: =Inputs!C61*(1+Inputs!$C$49)*(1-$C$147) -> 0.4751831559 | D98: =C98*(1+Inputs!$C$49)*(1-Inputs!$D$52) -> 0.520774204 | E98: =D98*(1+Inputs!$C$49)*(1-Inputs!$D$52) -> 0.5707394469 | F98: =E98*(1+Inputs!$C$49)*(1-Inputs!$D$52) -> 0.625498563 | G98: =F98*(1+Inputs!$C$49)*(1-Inputs!$D$52) -> 0.6855114964
B99: Minor LED | C99: =Inputs!C62*(1+Inputs!$C$49)*(1-$C$147) -> 0.3015624827 | D99: =C99*(1+Inputs!$C$49)*(1-Inputs!$D$52) -> 0.3304956414 | E99: =D99*(1+Inputs!$C$49)*(1-Inputs!$D$52) -> 0.3622047676 | F99: =E99*(1+Inputs!$C$49)*(1-Inputs!$D$52) -> 0.3969561993 | G99: =F99*(1+Inputs!$C$49)*(1-Inputs!$D$52) -> 0.4350418279
B101: Rate 2 - Gifted & Ergon Energy Operated
B102: Major Conventional | C102: =Inputs!C65*(1+Inputs!$C$49)*(1-$C$146) -> 0.4940677173 | D102: =C102*(1+Inputs!$C$49)*(1-Inputs!$C$52) -> 0.5414706288 | E102: =D102*(1+Inputs!$C$49)*(1-Inputs!$C$52) -> 0.5934215728 | F102: =E102*(1+Inputs!$C$49)*(1-Inputs!$C$52) -> 0.6503569063 | G102: =F102*(1+Inputs!$C$49)*(1-Inputs!$C$52) -> 0.7127548526
B103: Minor Conventional | C103: =Inputs!C66*(1+Inputs!$C$49)*(1-$C$146) -> 0.3236324769 | D103: =C103*(1+Inputs!$C$49)*(1-Inputs!$C$52) -> 0.3546831226 | E103: =D103*(1+Inputs!$C$49)*(1-Inputs!$C$52) -> 0.3887128964 | F103: =E103*(1+Inputs!$C$49)*(1-Inputs!$C$52) -> 0.4260076282 | G103: =F103*(1+Inputs!$C$49)*(1-Inputs!$C$52) -> 0.4668805717
B104: Major LED | C104: =Inputs!C67*(1+Inputs!$C$49)*(1-$C$147) -> 0.3470492032 | D104: =C104*(1+Inputs!$C$49)*(1-Inputs!$D$52) -> 0.3803465471 | E104: =D104*(1+Inputs!$C$49)*(1-Inputs!$D$52) -> 0.4168385766 | F104: =E104*(1+Inputs!$C$49)*(1-Inputs!$D$52) -> 0.4568318031 | G104: =F104*(1+Inputs!$C$49)*(1-Inputs!$D$52) -> 0.5006621461
B105: Minor LED | C105: =Inputs!C68*(1+Inputs!$C$49)*(1-$C$147) -> 0.2303669904 | D105: =C105*(1+Inputs!$C$49)*(1-Inputs!$D$52) -> 0.2524693575 | E105: =D105*(1+Inputs!$C$49)*(1-Inputs!$D$52) -> 0.2766923176 | F105: =E105*(1+Inputs!$C$49)*(1-Inputs!$D$52) -> 0.3032393292 | G105: =F105*(1+Inputs!$C$49)*(1-Inputs!$D$52) -> 0.3323333716
B107: Rate 2A - Ergon Energy funded Rate 2, Owned & Operated
B108: Major LED | C108: =Inputs!C61*(1+Inputs!$C$49)*(1-$C$148) -> 0.5025558362 | D108: =C108*(1+Inputs!$C$49)*(1-Inputs!$E$52) -> 0.5507731331 | E108: =D108*(1+Inputs!$C$49)*(1-Inputs!$E$52) -> 0.603616598 | F108: =E108*(1+Inputs!$C$49)*(1-Inputs!$E$52) -> 0.6615300847 | G108: =F108*(1+Inputs!$C$49)*(1-Inputs!$E$52) -> 0.7250000321
B109: Minor LED | C109: =Inputs!C62*(1+Inputs!$C$49)*(1-$C$148) -> 0.3189338337 | D109: =C109*(1+Inputs!$C$49)*(1-Inputs!$E$52) -> 0.3495336721 | E109: =D109*(1+Inputs!$C$49)*(1-Inputs!$E$52) -> 0.3830693862 | F109: =E109*(1+Inputs!$C$49)*(1-Inputs!$E$52) -> 0.4198226562 | G109: =F109*(1+Inputs!$C$49)*(1-Inputs!$E$52) -> 0.4601021877
B111: Revenue checks
B113: Cummulative discount rate (used for NPV calculation) | C113: =1*(1+Inputs!C50) -> 1.060904457 | D113: =C113*(1+Inputs!D50) -> 1.125776632 | E113: =D113*(1+Inputs!E50) -> 1.195172105 | F113: =E113*(1+Inputs!F50) -> 1.269865093 | G113: =F113*(1+Inputs!G50) -> 1.350339205
B115: Conventional Rate 1 and Rate 2
B116: Unsmoothed Prices x Volumes - Conventional | C116: =(SUMPRODUCT(C8:C9,C77:C78)+SUMPRODUCT(C15:C16,C83:C84))*Inputs!$C$54 -> 12108083.09 | D116: =(SUMPRODUCT(D8:D9,D77:D78)+SUMPRODUCT(D15:D16,D83:D84))*Inputs!$C$54 -> 9686662.498 | E116: =(SUMPRODUCT(E8:E9,E77:E78)+SUMPRODUCT(E15:E16,E83:E84))*Inputs!$C$54 -> 9605537.096 | F116: =(SUMPRODUCT(F8:F9,F77:F78)+SUMPRODUCT(F15:F16,F83:F84))*Inputs!$C$54 -> 9088007.008 | G116: =(SUMPRODUCT(G8:G9,G77:G78)+SUMPRODUCT(G15:G16,G83:G84))*Inputs!$C$54 -> 7670524.739
B117: Revenue requirement - Conventional | C117: =Inputs!C33 -> 12108083.09 | D117: =Inputs!D33 -> 9686662.498 | E117: =Inputs!E33 -> 9605537.096 | F117: =Inputs!F33 -> 9088007.008 | G117: =Inputs!G33 -> 7670524.739
B118: Check | C118: =C116-C117 -> 0 | D118: =D116-D117 -> 0 | E118: 0 | F118: 0 | G118: 0
B120: LED Rate 1 and Rate 2
B121: Unsmoothed Prices x Volumes - LED | C121: =(SUMPRODUCT(C10:C11,C79:C80)+SUMPRODUCT(C17:C18,C85:C86))*Inputs!$C$54 -> 14498460.22 | D121: =(SUMPRODUCT(D10:D11,D79:D80)+SUMPRODUCT(D17:D18,D85:D86))*Inputs!$C$54 -> 16602281.43 | E121: =(SUMPRODUCT(E10:E11,E79:E80)+SUMPRODUCT(E17:E18,E85:E86))*Inputs!$C$54 -> 17633221.86 | F121: =(SUMPRODUCT(F10:F11,F79:F80)+SUMPRODUCT(F17:F18,F85:F86))*Inputs!$C$54 -> 19226795.79 | G121: =(SUMPRODUCT(G10:G11,G79:G80)+SUMPRODUCT(G17:G18,G85:G86))*Inputs!$C$54 -> 21824250.51
B122: Revenue requirement - LED | C122: =Inputs!C27+Inputs!C18 -> 14498460.22 | D122: =Inputs!D27+Inputs!D18 -> 16602281.43 | E122: =Inputs!E27+Inputs!E18 -> 17633221.86 | F122: =Inputs!F27+Inputs!F18 -> 19226795.79 | G122: =Inputs!G27+Inputs!G18 -> 21824250.51
B123: Check | C123: =C121-C122 -> 0 | D123: =D121-D122 -> 0 | E123: 0 | F123: 0 | G123: 0
B125: LED Rate 2A
B126: Unsmoothed Prices x Volumes - LED | C126: =SUMPRODUCT(C23:C24,C89:C90)*Inputs!$C$54 -> 629732.0977 | D126: =SUMPRODUCT(D23:D24,D89:D90)*Inputs!$C$54 -> 2534704.985 | E126: =SUMPRODUCT(E23:E24,E89:E90)*Inputs!$C$54 -> 3265969.366 | F126: =SUMPRODUCT(F23:F24,F89:F90)*Inputs!$C$54 -> 3989409.038 | G126: =SUMPRODUCT(G23:G24,G89:G90)*Inputs!$C$54 -> 4714628.62
B127: Revenue requirement - LED | C127: =Inputs!C29+Inputs!C19 -> 629732.0977 | D127: =Inputs!D29+Inputs!D19 -> 2534704.985 | E127: =Inputs!E29+Inputs!E19 -> 3265969.366 | F127: =Inputs!F29+Inputs!F19 -> 3989409.038 | G127: =Inputs!G29+Inputs!G19 -> 4714628.62
B128: Check | C128: =C126-C127 -> 0 | D128: =D126-D127 -> 0 | E128: 0 | F128: 0 | G128: 0
B130: Smoothed Prices x Volumes - Conventional | C130: =(SUMPRODUCT(C8:C9,C96:C97)+SUMPRODUCT(C15:C16,C102:C103))*Inputs!$C$54 -> 15020765.83 | D130: =(SUMPRODUCT(D8:D9,D96:D97)+SUMPRODUCT(D15:D16,D102:D103))*Inputs!$C$54 -> 12803931.96 | E130: =(SUMPRODUCT(E8:E9,E96:E97)+SUMPRODUCT(E15:E16,E102:E103))*Inputs!$C$54 -> 10023174.83 | F130: =(SUMPRODUCT(F8:F9,F96:F97)+SUMPRODUCT(F15:F16,F102:F103))*Inputs!$C$54 -> 6590762.525 | G130: =(SUMPRODUCT(G8:G9,G96:G97)+SUMPRODUCT(G15:G16,G102:G103))*Inputs!$C$54 -> 2407766.576
B131: Smoothed Prices x Volumes - LED Rate 1 and 2 | C131: =(SUMPRODUCT(C10:C11,C98:C99)+SUMPRODUCT(C17:C18,C104:C105))*Inputs!$C$54 -> 11605004.56 | D131: =(SUMPRODUCT(D10:D11,D98:D99)+SUMPRODUCT(D17:D18,D104:D105))*Inputs!$C$54 -> 14380995.77 | E131: =(SUMPRODUCT(E10:E11,E98:E99)+SUMPRODUCT(E17:E18,E104:E105))*Inputs!$C$54 -> 17661901.22 | F131: =(SUMPRODUCT(F10:F11,F98:F99)+SUMPRODUCT(F17:F18,F104:F105))*Inputs!$C$54 -> 21441224.04 | G131: =(SUMPRODUCT(G10:G11,G98:G99)+SUMPRODUCT(G17:G18,G104:G105))*Inputs!$C$54 -> 25784304.54
B132: Smoothed Prices x Volumes - LED Rate 2A | C132: =SUMPRODUCT(C23:C24,C108:C109)*Inputs!$C$54 -> 1023023.514 | D132: =SUMPRODUCT(D23:D24,D108:D109)*Inputs!$C$54 -> 1868463.322 | E132: =SUMPRODUCT(E23:E24,E108:E109)*Inputs!$C$54 -> 2866715.933 | F132: =SUMPRODUCT(F23:F24,F108:F109)*Inputs!$C$54 -> 4039519.309 | G132: =SUMPRODUCT(G23:G24,G108:G109)*Inputs!$C$54 -> 5410981.024
B134: NPV Revenue requirement - Conventional | C134: =(C117/C113)+(D117/D113)+(E117/E113)+(F117/F113)+(G117/G113) -> 40891471.34
B135: NPV Smoothed Prices x Volume - Conventional | C135: =(C130/C113)+(D130/D113)+(E130/E113)+(F130/F113)+(G130/G113) -> 40891471.34
B136: Check | C136: =C134-C135 -> 0
B138: NPV Revenue requirement - LED Rate 1 and Rate 2 | C138: =(C122/C113)+(D122/D113)+(E122/E113)+(F122/F113)+(G122/G113) -> 74470112.2
B139: NPV Smoothed Prices x Volume - LED Rate 1 and Rate 2 | C139: =(C131/C113)+(D131/D113)+(E131/E113)+(F131/F113)+(G131/G113) -> 74470112.2
B140: Check | C140: =C138-C139 -> 0
B142: NPV Revenue requirement - LED Rate 2A | C142: =(C127/C113)+(D127/D113)+(E127/E113)+(F127/F113)+(G127/G113) -> 12210773.3
B143: NPV Smoothed Prices x Volume - LED Rate 2A | C143: =(C132/C113)+(D132/D113)+(E132/E113)+(F132/F113)+(G132/G113) -> 12210773.3
B144: Check | C144: =C142-C143 -> 0
B146: P0 Conventional | C146: -0.07884171962 | D146: Goal Seek value
B147: P0 LED Rate 1 and 2 | C147: -0.2506313357 | D147: Goal Seek value
B148: P0 LED Rate 2A | C148: -0.3226733078 | D148: Goal Seek value
B150: positive P0 imply real decrease in price constraint
C153: Data/What-if Analysis/Goal Seek
C154: Goal Seek | D154: P0 Conventional | E154: P0 LED Rate 1 & 2 | F154: P0 Rate 2A
C155: Set Cell | D155: C136 | E155: C140 | F155: C144
C156: To Value | D156: 0 | E156: 0 | F156: 0
C157: By Changing Cell | D157: C146 | E157: C147 | F157: C148

Sheet Output
B2: Public lighting annual prices
B4: Year | C4: 2025-26 | D4: 2026-27 | E4: 2027-28 | F4: 2028-29 | G4: 2029-30
B5: Rate 1 - Ergon Energy Owned & Operated
B6: Major Conventional | C6: =Calculations!C96*Inputs!C$55 -> 446.5534795 | D6: =Calculations!D96*Inputs!D$55 -> 489.3976775 | E6: =Calculations!E96*Inputs!E$55 -> 536.3525259 | F6: =Calculations!F96*Inputs!F$55 -> 589.4228627 | G6: =Calculations!G96*Inputs!G$55 -> 644.2095857
B7: Minor Conventional | C7: =Calculations!C97*Inputs!C$55 -> 266.0493662 | D7: =Calculations!D97*Inputs!D$55 -> 291.5752488 | E7: =Calculations!E97*Inputs!E$55 -> 319.5501907 | F7: =Calculations!F97*Inputs!F$55 -> 351.1686421 | G7: =Calculations!G97*Inputs!G$55 -> 383.8096887
B8: Major LED | C8: =Calculations!C98*Inputs!C$55 -> 173.4418519 | D8: =Calculations!D98*Inputs!D$55 -> 190.0825845 | E8: =Calculations!E98*Inputs!E$55 -> 208.3198981 | F8: =Calculations!F98*Inputs!F$55 -> 228.9324741 | G8: =Calculations!G98*Inputs!G$55 -> 250.2116962
B9: Minor LED | C9: =Calculations!C99*Inputs!C$55 -> 110.0703062 | D9: =Calculations!D99*Inputs!D$55 -> 120.6309091 | E9: =Calculations!E99*Inputs!E$55 -> 132.2047402 | F9: =Calculations!F99*Inputs!F$55 -> 145.285969 | G9: =Calculations!G99*Inputs!G$55 -> 158.7902672
B11: Rate 2 - Gifted & Ergon Energy Operated
B12: Major Conventional | C12: =Calculations!C102*Inputs!C$55 -> 180.3347168 | D12: =Calculations!D102*Inputs!D$55 -> 197.6367795 | E12: =Calculations!E102*Inputs!E$55 -> 216.5988741 | F12: =Calculations!F102*Inputs!F$55 -> 238.0306277 | G12: =Calculations!G102*Inputs!G$55 -> 260.1555212
B13: Minor Conventional | C13: =Calculations!C103*Inputs!C$55 -> 118.1258541 | D13: =Calculations!D103*Inputs!D$55 -> 129.4593397 | E13: =Calculations!E103*Inputs!E$55 -> 141.8802072 | F13: =Calculations!F103*Inputs!F$55 -> 155.9187919 | G13: =Calculations!G103*Inputs!G$55 -> 170.4114087
B14: Major LED | C14: =Calculations!C104*Inputs!C$55 -> 126.6729592 | D14: =Calculations!D104*Inputs!D$55 -> 138.8264897 | E14: =Calculations!E104*Inputs!E$55 -> 152.1460804 | F14: =Calculations!F104*Inputs!F$55 -> 167.2004399 | G14: =Calculations!G104*Inputs!G$55 -> 182.7416833
B15: Minor LED | C15: =Calculations!C105*Inputs!C$55 -> 84.0839515 | D15: =Calculations!D105*Inputs!D$55 -> 92.15131549 | E15: =Calculations!E105*Inputs!E$55 -> 100.9926959 | F15: =Calculations!F105*Inputs!F$55 -> 110.9855945 | G15: =Calculations!G105*Inputs!G$55 -> 121.3016806
B17: Rate 2A - Ergon Energy funded Rate 2, Owned & Operated
B18: Major LED | C18: =Calculations!C108*Inputs!C$55 -> 183.4328802 | D18: =Calculations!D108*Inputs!D$55 -> 201.0321936 | E18: =Calculations!E108*Inputs!E$55 -> 220.3200583 | F18: =Calculations!F108*Inputs!F$55 -> 242.120011 | G18: =Calculations!G108*Inputs!G$55 -> 264.6250117
B19: Minor LED | C19: =Calculations!C109*Inputs!C$55 -> 116.4108493 | D19: =Calculations!D109*Inputs!D$55 -> 127.5797903 | E19: =Calculations!E109*Inputs!E$55 -> 139.820326 | F19: =Calculations!F109*Inputs!F$55 -> 153.6550922 | G19: =Calculations!G109*Inputs!G$55 -> 167.9372985
B21: Public lighting daily prices
B23: Year | C23: 2025-26 | D23: 2026-27 | E23: 2027-28 | F23: 2028-29 | G23: 2029-30
B24: Rate 1 - Eron Energy Owned & Operated
B25: Major Conventional | C25: =Calculations!C96 -> 1.223434191 | D25: =Calculations!D96 -> 1.340815555 | E25: =Calculations!E96 -> 1.469458975 | F25: =Calculations!F96 -> 1.61044498 | G25: =Calculations!G96 -> 1.764957769
B26: Minor Conventional | C26: =Calculations!C97 -> 0.7289023731 | D26: =Calculations!D97 -> 0.7988362981 | E26: =Calculations!E97 -> 0.8754799746 | F26: =Calculations!F97 -> 0.9594771643 | G26: =Calculations!G97 -> 1.051533394
B27: Major LED | C27: =Calculations!C98 -> 0.4751831559 | D27: =Calculations!D98 -> 0.520774204 | E27: =Calculations!E98 -> 0.5707394469 | F27: =Calculations!F98 -> 0.625498563 | G27: =Calculations!G98 -> 0.6855114964
B28: Minor LED | C28: =Calculations!C99 -> 0.3015624827 | D28: =Calculations!D99 -> 0.3304956414 | E28: =Calculations!E99 -> 0.3622047676 | F28: =Calculations!F99 -> 0.3969561993 | G28: =Calculations!G99 -> 0.4350418279
B30: Rate 2 - Gifted & Ergon Energy Operated
B31: Major Conventional | C31: =Calculations!C102 -> 0.4940677173 | D31: =Calculations!D102 -> 0.5414706288 | E31: =Calculations!E102 -> 0.5934215728 | F31: =Calculations!F102 -> 0.6503569063 | G31: =Calculations!G102 -> 0.7127548526
B32: Minor Conventional | C32: =Calculations!C103 -> 0.3236324769 | D32: =Calculations!D103 -> 0.3546831226 | E32: =Calculations!E103 -> 0.3887128964 | F32: =Calculations!F103 -> 0.4260076282 | G32: =Calculations!G103 -> 0.4668805717
B33: Major LED | C33: =Calculations!C104 -> 0.3470492032 | D33: =Calculations!D104 -> 0.3803465471 | E33: =Calculations!E104 -> 0.4168385766 | F33: =Calculations!F104 -> 0.4568318031 | G33: =Calculations!G104 -> 0.5006621461
B34: Minor LED | C34: =Calculations!C105 -> 0.2303669904 | D34: =Calculations!D105 -> 0.2524693575 | E34: =Calculations!E105 -> 0.2766923176 | F34: =Calculations!F105 -> 0.3032393292 | G34: =Calculations!G105 -> 0.3323333716
B36: Rate 2A - Ergon Energy funded Rate 2, Owned & Operated
B37: Major LED | C37: =Calculations!C108 -> 0.5025558362 | D37: =Calculations!D108 -> 0.5507731331 | E37: =Calculations!E108 -> 0.603616598 | F37: =Calculations!F108 -> 0.6615300847 | G37: =Calculations!G108 -> 0.7250000321
B38: Minor LED | C38: =Calculations!C109 -> 0.3189338337 | D38: =Calculations!D109 -> 0.3495336721 | E38: =Calculations!E109 -> 0.3830693862 | F38: =Calculations!F109 -> 0.4198226562 | G38: =Calculations!G109 -> 0.4601021877

Sheet Import Qty
B1: Ergon Energy Forecast Quantities
B2: Output to Public Lighting Pricing Model - Estimated Count by type
E6: Rate 1
B7: Public Lighting Quantity | C7: Rate | D7: Count | E7: 2025-26 | F7: 2026-27 | G7: 2027-28 | H7: 2028-29 | I7: 2029-30
B8: Major Conventional | C8: 1 | D8: Opening | E8: ='[1]Import Qty'!E8 -> 21456 | F8: ='[1]Import Qty'!F8 -> 17165 | G8: ='[1]Import Qty'!G8 -> 12874 | H8: ='[1]Import Qty'!H8 -> 8582 | I8: ='[1]Import Qty'!I8 -> 4291
B9: Minor Conventional | C9: 1 | D9: Opening | E9: ='[1]Import Qty'!E9 -> 13903 | F9: ='[1]Import Qty'!F9 -> 11122 | G9: ='[1]Import Qty'!G9 -> 8342 | H9: ='[1]Import Qty'!H9 -> 5561 | I9: ='[1]Import Qty'!I9 -> 2781
B10: Major LED | C10: 1 | D10: Opening | E10: ='[1]Import Qty'!E10 -> 8073.2 | F10: ='[1]Import Qty'!F10 -> 11949 | G10: ='[1]Import Qty'!G10 -> 16332 | H10: ='[1]Import Qty'!H10 -> 20718 | I10: ='[1]Import Qty'!I10 -> 25105
B11: Minor LED | C11: 1 | D11: Opening | E11: ='[1]Import Qty'!E11 -> 61189.4 | F11: ='[1]Import Qty'!F11 -> 62739 | G11: ='[1]Import Qty'!G11 -> 65807 | H11: ='[1]Import Qty'!H11 -> 68880 | I11: ='[1]Import Qty'!I11 -> 71956
B12: Total | C12: 1 | D12: Opening | E12: =SUM(E8:E11) -> 104621.6 | F12: =SUM(F8:F11) -> 102975 | G12: 103355 | H12: 103741 | I12: 104133
B13: Major Conventional | C13: 1 | D13: Closing | E13: ='[1]Import Qty'!E13 -> 17165 | F13: ='[1]Import Qty'!F13 -> 12874 | G13: ='[1]Import Qty'!G13 -> 8582 | H13: ='[1]Import Qty'!H13 -> 4291 | I13: ='[1]Import Qty'!I13 -> 0
B14: Minor Conventional | C14: 1 | D14: Closing | E14: ='[1]Import Qty'!E14 -> 11122 | F14: ='[1]Import Qty'!F14 -> 8342 | G14: ='[1]Import Qty'!G14 -> 5561 | H14: ='[1]Import Qty'!H14 -> 2781 | I14: ='[1]Import Qty'!I14 -> 0
B15: Major LED | C15: 1 | D15: Closing | E15: ='[1]Import Qty'!E15 -> 11949 | F15: ='[1]Import Qty'!F15 -> 16332 | G15: ='[1]Import Qty'!G15 -> 20718 | H15: ='[1]Import Qty'!H15 -> 25105 | I15: ='[1]Import Qty'!I15 -> 29494
B16: Minor LED | C16: 1 | D16: Closing | E16: ='[1]Import Qty'!E16 -> 62739 | F16: ='[1]Import Qty'!F16 -> 65807 | G16: ='[1]Import Qty'!G16 -> 68880 | H16: ='[1]Import Qty'!H16 -> 71956 | I16: ='[1]Import Qty'!I16 -> 75037
B17: Total | C17: 1 | D17: Closing | E17: =SUM(E13:E16) -> 102975 | F17: =SUM(F13:F16) -> 103355 | G17: 103741 | H17: 104133 | I17: 104531
B18: Major Conventional | C18: 1 | D18: Average | E18: =(E8+E13)/2 -> 19310.5 | F18: 15019.5 | G18: 10728 | H18: 6436.5 | I18: 2145.5
B19: Minor Conventional | C19: 1 | D19: Average | E19: 12512.5 | F19: 9732 | G19: 6951.5 | H19: 4171 | I19: 1390.5
B20: Major LED | C20: 1 | D20: Average | E20: 10011.1 | F20: 14140.5 | G20: 18525 | H20: 22911.5 | I20: 27299.5
B21: Minor LED | C21: 1 | D21: Average | E21: 61964.2 | F21: 64273 | G21: 67343.5 | H21: 70418 | I21: 73496.5
B22: Total | C22: 1 | D22: Average | E22: =SUM(E18:E21) -> 103798.3 | F22: =SUM(F18:F21) -> 103165 | G22: 103548 | H22: 103937 | I22: =SUM(I18:I21) -> 104332
E24: Rate 2
B25: Public Lighting Quantity | C25: Rate | D25: Count | E25: 2025-26 | F25: 2026-27 | G25: 2027-28 | H25: 2028-29 | I25: 2029-30
B26: Major Conventional | C26: 2 | D26: Opening | E26: ='[1]Import Qty'!E26 -> 10244 | F26: ='[1]Import Qty'!F26 -> 8195 | G26: ='[1]Import Qty'!G26 -> 6147 | H26: ='[1]Import Qty'!H26 -> 4098 | I26: ='[1]Import Qty'!I26 -> 2049
B27: Minor Conventional | C27: 2 | D27: Opening | E27: ='[1]Import Qty'!E27 -> 13129 | F27: ='[1]Import Qty'!F27 -> 10503 | G27: ='[1]Import Qty'!G27 -> 7878 | H27: ='[1]Import Qty'!H27 -> 5252 | I27: ='[1]Import Qty'!I27 -> 2626
B28: Major LED | C28: 2 | D28: Opening | E28: ='[1]Import Qty'!E28 -> 4644 | F28: ='[1]Import Qty'!F28 -> 6700 | G28: ='[1]Import Qty'!G28 -> 8755 | H28: ='[1]Import Qty'!H28 -> 10811 | I28: ='[1]Import Qty'!I28 -> 12867
B29: Minor LED | C29: 2 | D29: Opening | E29: ='[1]Import Qty'!E29 -> 25546 | F29: ='[1]Import Qty'!F29 -> 29680 | G29: ='[1]Import Qty'!G29 -> 32331 | H29: ='[1]Import Qty'!H29 -> 34983 | I29: ='[1]Import Qty'!I29 -> 37636
B30: Total | C30: 2 | D30: Opening | E30: =SUM(E26:E29) -> 53563 | F30: =SUM(F26:F29) -> 55078 | G30: 55111 | H30: 55144 | I30: 55178
B31: Major Conventional | C31: 2 | D31: Closing | E31: ='[1]Import Qty'!E31 -> 8195 | F31: ='[1]Import Qty'!F31 -> 6147 | G31: ='[1]Import Qty'!G31 -> 4098 | H31: ='[1]Import Qty'!H31 -> 2049 | I31: ='[1]Import Qty'!I31 -> 0
B32: Minor Conventional | C32: 2 | D32: Closing | E32: ='[1]Import Qty'!E32 -> 10503 | F32: ='[1]Import Qty'!F32 -> 7878 | G32: ='[1]Import Qty'!G32 -> 5252 | H32: ='[1]Import Qty'!H32 -> 2626 | I32: ='[1]Import Qty'!I32 -> 0
B33: Major LED | C33: 2 | D33: Closing | E33: ='[1]Import Qty'!E33 -> 6700 | F33: ='[1]Import Qty'!F33 -> 8755 | G33: ='[1]Import Qty'!G33 -> 10811 | H33: ='[1]Import Qty'!H33 -> 12867 | I33: ='[1]Import Qty'!I33 -> 14923
B34: Minor LED | C34: 2 | D34: Closing | E34: ='[1]Import Qty'!E34 -> 29680 | F34: ='[1]Import Qty'!F34 -> 32331 | G34: ='[1]Import Qty'!G34 -> 34983 | H34: ='[1]Import Qty'!H34 -> 37636 | I34: ='[1]Import Qty'!I34 -> 40290
B35: Total | C35: 2 | D35: Closing | E35: =SUM(E31:E34) -> 55078 | F35: =SUM(F31:F34) -> 55111 | G35: 55144 | H35: 55178 | I35: 55213
B36: Major Conventional | C36: 2 | D36: Average | E36: =(E26+E31)/2 -> 9219.5 | F36: 7171 | G36: 5122.5 | H36: 3073.5 | I36: 1024.5
B37: Minor Conventional | C37: 2 | D37: Average | E37: =(E27+E32)/2 -> 11816 | F37: 9190.5 | G37: 6565 | H37: 3939 | I37: 1313
B38: Major LED | C38: 2 | D38: Average | E38: =(E28+E33)/2 -> 5672 | F38: 7727.5 | G38: 9783 | H38: 11839 | I38: 13895
B39: Minor LED | C39: 2 | D39: Average | E39: =(E29+E34)/2 -> 27613 | F39: 31005.5 | G39: 33657 | H39: 36309.5 | I39: 38963
B40: Total | C40: 2 | D40: Average | E40: =SUM(E36:E39) -> 54320.5 | F40: =SUM(F36:F39) -> 55094.5 | G40: 55127.5 | H40: 55161 | I40: 55195.5
E42: Rate 2A
B43: Public Lighting Quantity | C43: Rate | D43: Count | E43: 2025-26 | F43: 2026-27 | G43: 2027-28 | H43: 2028-29 | I43: 2029-30
B44: Major LED | C44: 2A | D44: Opening | E44: ='[1]Import Qty'!E44 -> 2049 | F44: ='[1]Import Qty'!F44 -> 4098 | G44: ='[1]Import Qty'!G44 -> 6146 | H44: ='[1]Import Qty'!H44 -> 8195 | I44: ='[1]Import Qty'!I44 -> 10244
B45: Minor LED | C45: 2A | D45: Opening | E45: ='[1]Import Qty'!E45 -> 2626 | F45: ='[1]Import Qty'!F45 -> 5252 | G45: ='[1]Import Qty'!G45 -> 7877 | H45: ='[1]Import Qty'!H45 -> 10503 | I45: ='[1]Import Qty'!I45 -> 13129
B46: Total | C46: 2A | D46: Opening | E46: =SUM(E44:E45) -> 4675 | F46: =SUM(F44:F45) -> 9350 | G46: =SUM(G44:G45) -> 14023 | H46: =SUM(H44:H45) -> 18698 | I46: =SUM(I44:I45) -> 23373
B47: Major LED | C47: 2A | D47: Closing | E47: ='[1]Import Qty'!E47 -> 4098 | F47: ='[1]Import Qty'!F47 -> 6146 | G47: ='[1]Import Qty'!G47 -> 8195 | H47: ='[1]Import Qty'!H47 -> 10244 | I47: ='[1]Import Qty'!I47 -> 12293
B48: Minor LED | C48: 2A | D48: Closing | E48: ='[1]Import Qty'!E48 -> 5252 | F48: ='[1]Import Qty'!F48 -> 7877 | G48: ='[1]Import Qty'!G48 -> 10503 | H48: ='[1]Import Qty'!H48 -> 13129 | I48: ='[1]Import Qty'!I48 -> 15755
B49: Total | C49: 2A | D49: Closing | E49: =SUM(E47:E48) -> 9350 | F49: =SUM(F47:F48) -> 14023 | G49: =SUM(G47:G48) -> 18698 | H49: =SUM(H47:H48) -> 23373 | I49: =SUM(I47:I48) -> 28048
B50: Major LED | C50: 2A | D50: Average | E50: =(E44+E47)/2 -> 3073.5 | F50: 5122 | G50: 7170.5 | H50: 9219.5 | I50: 11268.5
B51: Minor LED | C51: 2A | D51: Average | E51: 3939 | F51: 6564.5 | G51: 9190 | H51: 11816 | I51: 14442
B52: Total | C52: 2A | D52: Average | E52: =SUM(E50:E51) -> 7012.5 | F52: =SUM(F50:F51) -> 11686.5 | G52: =SUM(G50:G51) -> 16360.5 | H52: =SUM(H50:H51) -> 21035.5 | I52: =SUM(I50:I51) -> 25710.5
